bitfinex/quotes_ETHUSD_20250331
["timestamp","ask_amount","ask_price","bid_price","bid_amount"]
[1743442128067,4.91940662,1842.2,1842.1,10.63652]
[1743442128440,4.91940662,1842.2,1842.1,5.208]
[1743442128636,5.68760662,1842.2,1842.1,5.208]
[1743442129763,5.68760662,1842.2,1842.1,10.63658]
[1743442129969,5.68760662,1842.2,1842.1,5.208]
[1743442130593,5.208,1842.1,1841.8,10.63636]
[1743442130776,4.51931909,1841.9,1841.8,10.63636]
[1743442131237,4.51931909,1841.9,1841.7,16.06631]
[1743442131875,4.51931909,1841.9,1841.7,10.63662]
[1743442132075,4.51931909,1841.9,1841.7,16.0663]
[1743442132377,4.971251,1841.9,1841.7,16.0663]
[1743442133065,5.787751,1841.9,1841.7,10.63662]
[1743442133444,5.787751,1841.9,1841.7,16.06625]
[1743442133744,5.787751,1841.9,1841.7,10.63662]
[1743442136372,5.787751,1841.9,1841.7,16.0663]
[1743442136573,5.787751,1841.9,1841.7,16.06629]
[1743442136874,5.787751,1841.9,1841.7,10.63662]
[1743442137076,5.787751,1841.9,1841.8,5.42947]
[1743442137578,4.971251,1841.9,1841.8,5.42947]
[1743442138181,4.971251,1841.9,1841.7,16.06626]
[1743442138360,4.971251,1841.9,1841.8,5.42947]
[1743442138678,4.971251,1841.9,1841.7,10.63662]
[1743442138894,0.40008753,1842.2,1842.1,5.42858]
[1743442139084,4.04626384,1842.3,1842.2,5.42829]
[1743442139381,3.84e-06,1842.3,1842.2,9.12817188]
[1743442139753,4.51931909,1842.6,1842.5,6.2525]
[1743442139981,4.51931909,1842.6,1842.5,12.627508]
[1743442141356,4.51931909,1842.6,1842.5,7.420508]
[1743442141558,4.51931909,1842.6,1842.5,10.6334]
[1743442142773,4.51931909,1842.6,1842.5,11.4056]
[1743442143982,4.519272,1842.5,1841.8,5.42947]
[1743442144185,4.519272,1842.5,1841.7,5.42976]
[1743442144186,4.51931909,1842.3,1842.2,6.19009]
[1743442144362,4.51931909,1842.3,1842.2,6.809099]
[1743442144562,0.7776,1842.8,1842.5,5.4274]
[1743442144871,4.51931909,1842.5,1842.4,5.4277]
[1743442149362,4.51931909,1842.5,1842.0,3.0]
[1743442149560,6.24581,1842.6,1842.2,5.42819]
[1743442149759,4.51931909,1842.3,1842.2,5.42819]
[1743442150686,4.51931909,1842.3,1842.1,5.42846]
[1743442150860,4.93426039,1842.3,1842.1,10.85689]
[1743442151206,4.93426039,1842.3,1842.0,5.42886]
[1743442151494,4.51931909,1842.1,1841.8,5.42944]
[1743442151685,4.51931909,1841.9,1841.7,10.85938]
[1743442151859,4.51931909,1841.9,1841.8,5.42947]
[1743442153001,4.51931909,1841.9,1841.6,5.42981]
[1743442153190,4.51931909,1841.7,1841.6,5.42981]
[1743442154227,9.49057009,1841.7,1841.3,36.7339]
[1743442154505,9.49057009,1841.7,1841.2,5.43123]
[1743442154506,4.51931909,1841.4,1841.2,5.43123]
[1743442154806,4.51931909,1841.3,1841.2,5.43123]
[1743442164603,4.51931909,1841.4,1841.3,10.86134]
[1743442164812,4.51931909,1841.4,1841.3,12.023934]
[1743442165725,4.51931909,1841.5,1841.4,5.43065]
[1743442179541,5.28401909,1841.5,1841.3,5.43092]
[1743442180248,5.28401909,1841.5,1841.3,5.43085]
[1743442180432,5.28401909,1841.5,1841.3,10.8617]
[1743442180634,5.28401909,1841.5,1841.3,5.43084]
[1743442181439,5.28401909,1841.5,1841.3,10.86168]
[1743442181641,5.28401909,1841.5,1841.3,5.43084]
[1743442181938,0.40899525,1841.6,1841.4,5.43065]
[1743442182144,4.51931909,1841.6,1841.5,5.43035]
[1743442183020,4.51931909,1841.8,1841.6,5.43006]
[1743442183225,4.91789818,1841.8,1841.7,5.42976]
[1743442186951,0.833,1842.1,1841.7,3.0]
[1743442187142,0.833,1842.3,1842.0,5.42877]
[1743442187343,4.51931909,1842.1,1842.0,5.42877]
[1743442188485,4.51931909,1842.1,1841.6,3.7957]
[1743442188486,0.8175,1842.0,1841.6,3.7957]
[1743442188645,4.51931909,1841.7,1841.6,10.148364]
[1743442188847,4.51931909,1841.7,1841.6,10.30016537]
[1743442189073,4.51931909,1841.7,1841.6,9.50446537]
[1743442189273,4.51931909,1841.7,1841.6,9.352664]
[1743442192395,4.51931909,1841.7,1841.6,5.43006]
[1743442200406,1.17349527,1842.1,1842.0,5.42888]
[1743442200605,5.69281436,1842.1,1842.0,5.42888]
[1743442200812,4.51931909,1842.3,1842.2,5.42829]
[1743442201307,0.41356561,1842.4,1842.2,0.05428268]
[1743442201494,0.27943318,1842.8,1842.7,5.42668]
[1743442201681,4.79875227,1842.8,1842.7,5.42668]
[1743442201881,4.79875227,1842.8,1842.6,5.42695]
[1743442202080,0.8231,1842.7,1842.5,5.42737]
[1743442202285,4.51931909,1842.6,1842.5,5.42737]
[1743442202500,15.00016009,1842.6,1842.1,5.42858]
[1743442202701,4.51931909,1842.2,1842.1,5.42858]
[1743442202883,4.51931909,1842.2,1842.0,5.42883]
[1743442203083,0.7624,1842.1,1841.7,41.9486]
[1743442203284,5.28171909,1841.8,1841.6,5.42994]
[1743442203614,4.51931909,1841.7,1841.6,5.42994]
[1743442204578,4.51931909,1841.7,1841.6,6.57023962]
[1743442204780,4.51931909,1841.7,1841.6,6.515941]
[1743442204984,4.51931909,1841.7,1841.6,7.304041]
[1743442205183,4.51931909,1841.7,1841.6,5.42994]
[1743442206613,4.51931909,1841.9,1841.8,5.42947]
[1743442207981,4.92905538,1841.9,1841.8,5.42947]
[1743442208411,4.51931909,1841.9,1841.8,5.42947]
[1743442208587,5.42743,1842.5,1842.0,5.42888]
[1743442208588,4.51931909,1842.1,1842.0,5.42888]
[1743442209113,4.51931909,1842.1,1841.9,5.42917]
[1743442209313,4.93630951,1842.1,1841.9,5.42917]
[1743442210017,4.93630951,1842.1,1841.8,5.42944]
[1743442210201,4.51931909,1841.9,1841.8,5.42944]
[1743442210404,4.51931909,1841.9,1841.4,6.21149]
[1743442210405,6.24629,1841.8,1841.4,6.21149]
[1743442210723,5.84562042,1842.1,1841.5,5.43028]
[1743442210724,4.51931909,1841.7,1841.5,5.43028]
[1743442211017,4.51931909,1841.7,1841.6,5.43006]
[1743442211610,4.51931909,1841.7,1841.5,5.43028]
[1743442211813,4.51931909,1841.7,1841.6,6.51586]
[1743442214509,4.51931909,1841.7,1841.6,7.710469]
[1743442215622,4.51931909,1841.7,1841.6,8.501369]
[1743442217127,4.51931909,1841.7,1841.6,7.30676]
[1743442217349,4.51931909,1841.7,1841.6,6.51586]
[1743442217715,0.41699042,1842.1,1842.0,5.42888]
[1743442217921,4.51931909,1842.1,1842.0,5.42888]
[1743442219146,4.51931909,1842.1,1841.9,5.42905]
[1743442219433,4.51931909,1842.1,1841.9,10.85811]
[1743442219644,4.51931909,1842.1,1841.9,10.85812]
[1743442219809,4.51931909,1842.1,1842.0,5.42888]
[1743442219989,4.51931909,1842.1,1841.9,10.85807]
[1743442220336,4.51931909,1842.1,1842.0,5.42888]
[1743442220541,4.51931909,1842.1,1841.9,5.42902]
[1743442220943,4.92932114,1842.1,1841.9,5.42902]
[1743442221929,4.92932114,1842.1,1841.9,10.85806]
[1743442222128,4.92932114,1842.1,1841.9,10.85804]
[1743442222301,4.92932114,1842.1,1841.9,5.42902]
[1743442222944,4.92932114,1842.1,1841.6,6.51577]
[1743442222945,5.42917,1841.9,1841.6,6.51577]
[1743442223239,4.51931909,1842.4,1841.6,6.51577]
[1743442223240,0.8051,1842.5,1841.9,8.42917]
[1743442223550,4.51931909,1842.3,1842.2,5.42829]
[1743442223848,4.51931909,1842.5,1842.2,5.42829]
[1743442223998,4.51931909,1842.5,1842.4,6.2203]
[1743442225936,5.214,1843.3,1842.4,6.2203]
[1743442225937,0.05,1843.9,1842.7,0.7579]
[1743442226107,1e-05,1843.9,1843.8,9.18148]
[1743442226309,4.51932909,1843.9,1843.8,7.69622811]
[1743442226556,5.17195421,1843.9,1843.5,10.84436]
[1743442226855,1.77478357,1843.8,1843.7,5.42387]
[1743442227006,1.77478357,1843.8,1843.6,5.42412]
[1743442227214,0.91783558,1843.9,1843.7,5.42387]
[1743442227449,0.91783558,1843.9,1843.6,5.424]
[1743442227611,1e-05,1843.9,1843.6,5.424]
[1743442227835,1e-05,1843.9,1843.8,5.42358]
[1743442228038,4.51932909,1843.9,1843.6,5.42413]
[1743442228238,4.51931909,1843.7,1843.6,5.42413]
[1743442228466,4.51931909,1843.7,1843.4,36.73272]
[1743442228654,4.51931909,1843.5,1843.4,36.73272]
[1743442228981,4.51931909,1843.5,1843.4,5.42472]
[1743442229285,4.49217909,1843.5,1843.4,5.42472]
[1743442229789,5.01463116,1843.8,1843.5,5.42428]
[1743442230075,5.76014881,1843.8,1843.5,5.42428]
[1743442231074,5.76014881,1843.8,1843.4,5.42472]
[1743442231374,5.01463116,1843.6,1843.4,5.42472]
[1743442231673,5.76733116,1843.6,1843.3,5.425]
[1743442231878,6.34406428,1843.6,1843.3,5.425]
[1743442234365,6.34406428,1843.6,1843.4,5.42475]
[1743442235346,5.76014881,1843.8,1843.5,5.42427]
[1743442235551,5.01463116,1843.8,1843.5,5.42427]
[1743442235750,5.01463116,1843.6,1843.5,5.42427]
[1743442235942,5.01463116,1843.6,1843.4,5.42472]
[1743442236674,6.05848628,1843.6,1843.3,5.42504]
[1743442236873,5.01463116,1843.4,1843.2,5.42531]
[1743442237255,5.01463116,1843.4,1843.2,10.85049]
[1743442238081,5.01463116,1843.4,1843.3,5.42505]
[1743442242090,5.42363,1843.8,1843.4,5.42454]
[1743442242287,5.01463116,1843.5,1843.4,5.42454]
[1743442245811,5.01463116,1843.5,1843.3,5.42492]
[1743442245994,5.01463116,1843.5,1843.3,10.84983]
[1743442246194,5.01463116,1843.5,1843.3,5.42491]
[1743442247279,5.01463116,1843.5,1843.3,10.84984]
[1743442247602,5.01463116,1843.5,1843.3,5.42491]
[1743442247796,6.32429428,1843.5,1843.2,5.42526]
[1743442248017,5.01463116,1843.3,1843.2,5.42526]
[1743442249821,4.52915012,1843.3,1843.2,5.42526]
[1743442252102,14.48345024,1843.3,1842.9,10.85228]
[1743442252297,4.52915012,1843.0,1842.9,10.85228]
[1743442252499,4.52915012,1843.0,1842.9,5.4261]
[1743442253790,4.52915012,1843.0,1842.8,17.05647]
[1743442253992,4.52915012,1843.0,1842.9,5.42623]
[1743442255823,4.52915012,1843.0,1842.9,5.93399528]
[1743442256722,4.52915012,1843.0,1842.9,5.42623]
[1743442258337,4.52915012,1843.0,1842.8,6.25198]
[1743442258507,4.52915012,1843.0,1842.8,5.42638]
[1743442259398,4.52915012,1843.0,1842.7,8.42675]
[1743442259592,4.52915012,1842.8,1842.7,5.42675]
[1743442260523,4.52915012,1842.8,1842.6,5.42709]
[1743442260729,9.95568012,1842.8,1842.5,36.71335]
[1743442260936,4.52915012,1842.6,1842.5,36.71335]
[1743442263127,4.52915012,1842.6,1842.5,5.42735]
[1743442263328,0.7821,1843.1,1842.9,5.4261]
[1743442263494,4.52915012,1843.0,1842.8,5.42647]
[1743442263700,4.52915012,1842.9,1842.8,5.42647]
[1743442266237,0.4056356,1843.3,1843.2,5.42532]
[1743442266398,4.52915012,1843.3,1843.0,5.42587]
[1743442266734,4.52915012,1843.1,1843.0,5.42583]
[1743442269699,0.80431,1843.9,1843.4,5.4246]
[1743442269937,4.52915012,1843.6,1843.4,1.31536]
[1743442270142,4.52915012,1843.6,1843.5,5.42446]
[1743442281764,5.30485012,1843.6,1843.2,0.758]
[1743442281930,4.52915012,1843.3,1843.0,6.21054]
[1743442282120,4.52915012,1843.1,1842.9,31.291]
[1743442282448,4.52915012,1843.1,1842.9,5.42621]
[1743442282967,4.52915012,1843.1,1842.8,5.42641]
[1743442283169,4.52915012,1842.9,1842.6,5.4271]
[1743442283368,4.52915012,1842.9,1842.5,5.325]
[1743442283369,4.52915012,1842.7,1842.5,5.42738]
[1743442283871,4.52915012,1842.7,1842.5,10.85461]
[1743442284617,4.93045575,1842.7,1842.5,5.42723]
[1743442284935,10.35751575,1842.7,1842.3,5.42793]
[1743442285126,10.35751575,1842.7,1842.2,36.71013]
[1743442285127,9.05830024,1842.4,1842.2,36.71013]
[1743442285321,9.05830024,1842.4,1842.2,42.13828]
[1743442285529,9.84490024,1842.4,1842.2,36.71013]
[1743442286327,9.84490024,1842.4,1842.2,42.13824]
[1743442286539,9.84490024,1842.4,1842.3,5.42799]
[1743442286740,4.52915012,1842.4,1842.3,5.42799]
[1743442287934,4.52915012,1842.4,1842.2,36.71011]
[1743442288560,9.05830024,1842.4,1842.2,36.71011]
[1743442288859,9.05830024,1842.4,1842.2,31.282]
[1743442289164,16.47736526,1842.4,1842.1,5.42857]
[1743442289358,4.52915012,1842.2,1842.1,5.42857]
[1743442293161,0.7866,1842.6,1842.5,5.4274]
[1743442293457,0.40130563,1842.7,1842.4,5.42758]
[1743442293458,5.82817563,1842.7,1842.4,5.42758]
[1743442293758,5.42713,1842.6,1842.3,5.42794]
[1743442294256,9.05830024,1842.4,1842.3,5.42794]
[1743442294451,4.52915012,1842.4,1842.3,5.42794]
[1743442294938,4.52915012,1842.4,1842.2,10.85641]
[1743442295133,9.83890024,1842.4,1842.1,5.42849]
[1743442295340,4.52915012,1842.2,1842.1,5.42849]
[1743442297232,4.52915012,1842.2,1842.1,7.045505]
[1743442298344,4.52915012,1842.2,1842.1,5.42849]
[1743442299030,4.52915012,1842.2,1841.9,5.42911]
[1743442299367,4.52915012,1842.0,1841.9,5.42911]
[1743442301940,4.52915012,1842.2,1842.1,5.42858]
[1743442302327,4.52915012,1842.2,1842.1,10.73058]
[1743442302728,4.52915012,1842.2,1842.1,10.72958]
[1743442305277,4.52915012,1842.2,1842.1,15.345413]
[1743442305439,0.8009,1842.9,1842.8,5.42652]
[1743442305641,4.52915012,1842.9,1842.8,5.42652]
[1743442305855,6.22521,1843.6,1843.2,10.85068]
[1743442306166,4.52915012,1843.3,1843.2,5.42534]
[1743442310474,4.52915012,1843.3,1843.1,10.85101]
[1743442310774,4.52915012,1843.3,1843.2,5.42534]
[1743442312071,4.52915012,1843.3,1843.0,5.42589]
[1743442312371,4.52915012,1843.1,1843.0,5.42589]
[1743442313870,4.52915012,1843.1,1843.0,7.583801]
[1743442314843,0.41515485,1843.5,1843.3,5.4249]
[1743442315181,4.52915012,1843.4,1843.3,5.4249]
[1743442321281,0.41319945,1843.5,1843.4,5.42475]
[1743442321455,4.52915012,1843.5,1843.4,5.42475]
[1743442321647,4.98206513,1843.5,1843.3,5.4249]
[1743442321853,6.17576331,1843.5,1843.2,5.4252]
[1743442322053,4.52915012,1843.3,1843.2,5.4252]
[1743442326493,4.52915012,1843.3,1842.6,41.552]
[1743442326494,0.7823,1843.2,1842.6,41.552]
[1743442326714,4.52915012,1842.7,1842.6,37.52793]
[1743442326872,4.52915012,1842.7,1842.6,5.42703]
[1743442328086,4.52915012,1842.7,1842.6,5.42711]
[1743442328791,4.93443219,1842.7,1842.6,5.42711]
[1743442329397,4.52915012,1842.7,1842.6,5.42711]
[1743442329695,0.8287,1843.0,1842.7,5.42679]
[1743442329899,11.68077,1843.0,1842.6,5.427]
[1743442330197,6.25465,1843.0,1842.7,5.42669]
[1743442330409,5.42642,1842.9,1842.5,5.42734]
[1743442330555,5.969282,1842.8,1842.5,5.42734]
[1743442330884,4.52915012,1842.6,1842.5,5.42734]
[1743442332293,4.52915012,1842.6,1842.3,6.2267]
[1743442332494,4.52915012,1842.4,1842.3,5.4278]
[1743442332864,4.94644401,1842.4,1842.3,5.4278]
[1743442333069,4.52915012,1842.4,1842.3,5.4278]
[1743442333794,9.05830024,1842.4,1842.1,5.42854]
[1743442333998,4.52915012,1842.2,1842.1,10.85699]
[1743442338310,4.52915012,1842.2,1842.1,5.42845]
[1743442342023,4.52915012,1842.2,1842.0,5.42875]
[1743442342310,4.52915012,1842.2,1841.7,3.0]
[1743442342311,5.42887,1842.1,1841.7,8.4297]
[1743442342513,4.52915012,1841.8,1841.7,3.0]
[1743442342811,4.8051107,1841.8,1841.6,6.51575]
[1743442343612,4.8051107,1841.8,1841.6,1.0858]
[1743442343994,5.33585012,1841.7,1841.6,1.0858]
[1743442344193,10.76561012,1841.7,1841.6,1.0858]
[1743442345924,0.8067,1841.7,1841.6,1.0858]
[1743442346128,5.33585012,1841.7,1841.6,1.0858]
[1743442346299,10.76561012,1841.7,1841.6,1.0858]
[1743442346499,13.00835851,1841.7,1841.6,1.0858]
[1743442347992,3.04944839,1841.7,1841.6,1.0858]
[1743442348408,3.04944839,1841.7,1841.6,6.51586]
[1743442348702,0.8067,1841.7,1841.6,1.0858]
[1743442349249,0.7792,1842.1,1841.7,5.42976]
[1743442349532,0.7792,1842.1,1841.8,5.42931]
[1743442349685,6.48034756,1842.1,1841.8,5.42931]
[1743442350517,6.88914557,1842.1,1841.8,5.42931]
[1743442350687,4.52915012,1841.9,1841.8,5.42931]
[1743442350888,4.52915012,1841.9,1841.8,7.058174]
[1743442351334,5.35325012,1841.9,1841.6,1.0858]
[1743442351616,5.35325012,1841.9,1841.3,8.43088]
[1743442351617,14.48806024,1841.7,1841.3,10.86163]
[1743442351820,4.52915012,1841.5,1841.3,10.86163]
[1743442352719,4.52915012,1841.5,1841.4,5.43065]
[1743442357837,4.52915012,1841.5,1841.4,5.58290356]
[1743442358438,4.52915012,1841.9,1841.8,5.42947]
[1743442360551,10.78708012,1842.4,1842.1,5.42846]
[1743442360709,4.52915012,1842.2,1842.1,5.42846]
[1743442362020,4.92990319,1842.2,1842.0,5.4288]
[1743442362251,5.42868,1842.1,1841.7,11.47726]
[1743442362412,4.52915012,1841.8,1841.7,5.42966]
[1743442363452,4.52915012,1841.8,1841.6,5.43003]
[1743442363828,4.52915012,1841.8,1841.6,5.42994]
[1743442364135,4.93130712,1841.8,1841.6,5.42994]
[1743442364343,4.93130712,1841.8,1841.6,10.85984]
[1743442364658,5.42443783,1841.8,1841.6,5.4299]
[1743442365149,5.42443783,1841.8,1841.6,10.85983]
[1743442365447,5.42443783,1841.8,1841.6,10.85984]
[1743442365949,5.42443783,1841.8,1841.5,5.43032]
[1743442366148,4.52915012,1841.6,1841.5,5.43032]
[1743442366561,4.52915012,1841.6,1841.5,5.5836345]
[1743442367822,15.01908525,1841.6,1841.5,0.1533145]
[1743442368163,9.58902525,1841.6,1841.3,10.86159]
[1743442368315,4.52915012,1841.4,1841.3,10.86159]
[1743442370012,4.52915012,1841.8,1841.5,0.7943]
[1743442370324,4.52915012,1841.8,1841.7,6.22406]
[1743442370827,4.52915012,1841.8,1841.7,5.93745159]
[1743442372950,4.52915012,1841.8,1841.7,5.42976]
[1743442376440,4.52915012,1841.8,1841.7,6.515729]
[1743442376644,4.52915012,1842.0,1841.9,5.42917]
[1743442379721,0.41571304,1842.3,1841.9,5.42917]
[1743442380024,4.52915012,1842.2,1842.1,0.7556]
[1743442380351,4.52915012,1842.2,1842.1,6.18406]
[1743442380554,4.52915012,1842.2,1842.1,7.345341]
[1743442380954,4.52915012,1842.2,1842.1,6.18406]
[1743442381127,4.52915012,1842.2,1842.1,5.42846]
[1743442383929,4.52915012,1842.2,1841.9,5.42914]
[1743442383930,9.95751012,1842.2,1841.9,5.42914]
[1743442384121,4.52915012,1842.0,1841.8,6.24214421]
[1743442384322,5.80806513,1842.0,1841.8,6.24214421]
[1743442384525,5.80806513,1842.0,1841.8,5.42936]
[1743442384958,5.80806513,1842.0,1841.8,10.8587]
[1743442385832,5.80806513,1842.0,1841.8,10.85866]
[1743442386030,5.80806513,1842.0,1841.8,5.42932]
[1743442387763,0.58080651,1841.9,1841.7,5.42971]
[1743442387966,0.58080651,1841.9,1841.6,5.43002]
[1743442387967,4.52915012,1841.8,1841.6,5.43002]
[1743442388671,4.93268507,1841.8,1841.6,5.43002]
[1743442389832,4.93268507,1841.8,1841.6,10.85992]
[1743442390048,5.48403423,1841.8,1841.6,5.4299]
[1743442390451,6.20137,1841.7,1841.4,5.83688849]
[1743442390659,4.52915012,1841.6,1841.4,5.83688849]
[1743442390844,4.52915012,1841.6,1841.5,5.43035]
[1743442394477,4.52915012,1841.6,1841.4,5.43045]
[1743442394778,4.52915012,1841.5,1841.4,5.43045]
[1743442395358,4.52915012,1841.5,1841.4,5.63390475]
[1743442401285,0.95488411,1841.8,1841.4,5.63390475]
[1743442401286,4.52915012,1841.6,1841.5,6.23975]
[1743442401584,4.52915012,1841.6,1841.5,6.44242513]
[1743442403689,4.52915012,1841.6,1841.5,5.63302513]
[1743442404187,4.52915012,1841.6,1841.5,0.20267513]
[1743442404487,4.98206513,1841.6,1841.5,0.20267513]
[1743442404686,4.98206513,1841.6,1841.5,5.63302513]
[1743442407177,4.52915012,1841.6,1841.5,5.63302513]
[1743442408704,14.48836024,1841.6,1841.5,0.20267513]
[1743442408867,15.24126024,1841.6,1841.5,0.20267513]
[1743442409069,10.86099,1841.5,1841.3,0.40633186]
[1743442409268,10.71270012,1841.4,1841.3,0.40633186]
[1743442409484,12.32700713,1841.4,1841.3,0.40633186]
[1743442409975,5.43097,1841.3,1841.1,0.05]
[1743442410170,4.52915012,1841.2,1841.1,0.05]
[1743442410768,4.52915012,1841.2,1841.1,5.48153]
[1743442411206,4.93969952,1841.2,1841.1,5.48153]
[1743442411509,4.93969952,1841.2,1841.1,0.05]
[1743442412286,5.43366947,1841.2,1841.1,0.05]
[1743442412880,5.43366947,1841.2,1841.1,5.48153]
[1743442413086,5.43366947,1841.2,1841.1,0.05]
[1743442413484,5.43366947,1841.2,1841.1,5.48153]
[1743442413693,5.43366947,1841.2,1841.1,0.05]
[1743442414015,10.86490947,1841.2,1841.1,0.05]
[1743442414512,5.43196,1841.0,1840.6,10.86588]
[1743442414669,4.52915012,1840.7,1840.6,5.4329]
[1743442415401,4.52915012,1840.7,1840.5,6.08362936]
[1743442415611,4.52915012,1840.6,1840.5,6.08362936]
[1743442415812,5.30465012,1840.6,1840.3,5.4338]
[1743442416022,4.52915012,1840.4,1840.2,5.43415]
[1743442416321,4.52915012,1840.3,1840.2,5.43415]
[1743442416858,4.52915012,1840.3,1840.1,0.05]
[1743442416988,4.52915012,1840.2,1839.9,5.43493]
[1743442417190,4.52915012,1840.0,1839.8,5.43536]
[1743442417395,4.52915012,1839.9,1839.8,5.43536]
[1743442418407,4.52915012,1839.9,1839.8,5.43537]
[1743442422922,5.36005012,1839.9,1839.7,0.01]
[1743442423213,5.43628,1839.5,1839.2,0.3169725]
[1743442423423,4.52915012,1839.3,1839.2,0.3169725]
[1743442424221,9.85130024,1839.3,1839.2,0.3169725]
[1743442424723,15.28815024,1839.3,1839.2,0.3169725]
[1743442425018,17.36063926,1839.3,1839.2,0.3169725]
[1743442425219,17.77704265,1839.3,1839.2,0.3169725]
[1743442426319,15.443979,1838.7,1838.1,0.05]
[1743442426630,15.443979,1838.7,1838.3,5.43965]
[1743442426631,1.5443979,1838.6,1838.3,5.43965]
[1743442426938,11.51979,1838.7,1838.3,5.64299903]
[1743442427219,5.43899,1838.6,1838.3,0.20334903]
[1743442427419,11.51979,1838.7,1838.3,0.20334903]
[1743442427620,11.51967,1838.7,1838.3,5.64313903]
[1743442427790,4.52915012,1838.4,1838.3,5.43979]
[1743442427994,4.52915012,1838.4,1838.3,5.64313903]
[1743442428192,4.52915012,1838.4,1838.3,6.46052903]
[1743442428786,4.52915012,1838.4,1838.3,5.64312903]
[1743442429716,6.50577051,1838.9,1838.5,5.43913]
[1743442430019,6.50577051,1838.9,1838.3,0.20334903]
[1743442430020,6.08890705,1838.8,1838.4,10.8788]
[1743442430324,6.08890705,1838.8,1838.5,0.15734758]
[1743442431000,4.52915012,1838.6,1838.5,0.15734758]
[1743442431207,4.93550394,1838.6,1838.5,0.15734758]
[1743442431528,4.93550394,1838.6,1838.1,0.05]
[1743442431529,14.90357406,1838.6,1838.1,0.05]
[1743442431685,14.90357406,1838.6,1837.7,6.19548]
[1743442431686,4.52915012,1838.2,1837.7,6.19548]
[1743442431913,4.52915012,1837.8,1837.7,6.19532]
[1743442432104,4.52915012,1837.8,1837.7,5.44142]
[1743442432417,4.98206513,1837.8,1837.7,5.44158]
[1743442432731,4.52915012,1837.8,1837.7,5.44158]
[1743442434245,4.92931675,1837.8,1837.7,5.44158]
[1743442438148,4.52915012,1837.8,1837.7,5.44158]
[1743442438447,4.94732792,1837.8,1837.6,6.55690409]
[1743442438630,0.49473279,1837.7,1837.6,1.11514409]
[1743442438820,0.49473279,1837.7,1837.6,6.55702409]
[1743442439008,0.49473279,1837.7,1837.6,1.11514409]
[1743442439212,0.49473279,1837.7,1837.6,6.55702409]
[1743442439820,4.94732792,1837.8,1837.6,6.55702409]
[1743442440042,4.94732792,1837.8,1837.6,11.99874409]
[1743442440242,4.94732792,1837.8,1837.7,5.44158]
[1743442442045,5.43985,1838.3,1838.0,5.44056]
[1743442442246,5.43985,1838.3,1837.6,1.11514409]
[1743442442247,6.21072,1837.9,1837.6,1.11514409]
[1743442442449,4.52915012,1837.8,1837.6,6.55689409]
[1743442443120,4.52915012,1837.8,1837.6,6.55697409]
[1743442443722,4.52915012,1837.8,1837.7,5.44158]
[1743442443922,4.52915012,1837.8,1837.6,6.55690409]
[1743442444160,4.52915012,1837.8,1837.7,5.44158]
[1743442444321,0.40003812,1837.9,1837.8,6.21878]
[1743442444523,4.52915012,1837.9,1837.8,6.21878]
[1743442445022,1.90757214,1838.4,1838.3,5.4398]
[1743442445264,10.96587238,1838.4,1838.3,5.4398]
[1743442446331,3.15347,1838.3,1837.9,5.44086]
[1743442446562,4.52915012,1838.0,1837.7,5.44132]
[1743442446729,4.52915012,1838.0,1837.6,1.11514409]
[1743442446730,4.52915012,1837.8,1837.6,1.11514409]
[1743442447457,4.94097266,1837.8,1837.6,1.11514409]
[1743442447666,0.7864,1838.2,1837.6,1.86784409]
[1743442447966,0.7864,1838.2,1838.0,5.44068]
[1743442448147,13.8344595,1838.4,1838.0,5.44059]
[1743442448468,13.8344595,1838.4,1838.0,5.44055]
[1743442448670,13.8344595,1838.4,1838.0,10.88115]
[1743442448837,12.32669722,1838.4,1838.1,5.44028]
[1743442449163,4.52915012,1838.2,1838.0,5.44057]
[1743442449326,4.52915012,1838.2,1838.0,5.44068]
[1743442449530,4.52915012,1838.2,1837.9,10.88194]
[1743442449730,9.97003012,1838.0,1837.6,1.11514409]
[1743442449937,4.52915012,1837.8,1837.6,11.99869409]
[1743442450169,4.52915012,1837.8,1837.6,6.55688409]
[1743442450361,4.52915012,1837.8,1837.7,5.44158]
[1743442452276,2.02296972,1838.3,1837.7,5.44158]
[1743442452573,12.90589972,1838.3,1837.9,5.44083]
[1743442452879,1.29058997,1838.2,1837.9,10.88167]
[1743442453373,6.73069997,1838.2,1837.9,5.44083]
[1743442453581,4.52915012,1838.0,1837.9,5.44083]
[1743442454471,0.8018,1837.9,1837.7,0.40520118]
[1743442454671,4.52915012,1837.8,1837.6,11.99857409]
[1743442454892,5.06224513,1837.8,1837.7,5.44158]
[1743442455452,4.52915012,1837.8,1837.6,11.99856409]
[1743442455683,4.52915012,1837.8,1837.6,7.36861409]
[1743442455966,4.52915012,1837.8,1837.6,6.55681409]
[1743442456138,0.7985,1837.7,1837.6,1.11514409]
[1743442456352,7.31698301,1837.7,1837.6,1.11514409]
[1743442456676,1.87540301,1837.7,1837.6,1.11514409]
[1743442456992,7.31698301,1837.7,1837.6,1.11514409]
[1743442457494,1.87540301,1837.7,1837.6,1.11514409]
[1743442458284,1.07690301,1837.7,1837.6,1.11514409]
[1743442459306,1.47805248,1837.7,1837.6,1.11514409]
[1743442459602,0.40114947,1837.7,1837.6,1.11514409]
[1743442459772,4.52915012,1837.8,1837.6,1.11514409]
[1743442460101,5.44306,1837.2,1837.1,0.05]
[1743442460404,5.44306,1837.2,1836.8,10.8983]
[1743442460405,9.97234012,1837.2,1836.8,10.8983]
[1743442460559,10.59831612,1837.2,1836.8,5.4541]
[1743442460760,10.59831612,1837.2,1836.9,5.44393]
[1743442460960,5.15512612,1837.2,1836.9,5.44383]
[1743442461160,5.15512612,1837.2,1836.9,5.44382]
[1743442461784,5.05185965,1837.1,1836.9,5.44382]
[1743442462001,10.49521965,1837.1,1836.8,5.45419]
[1743442462201,12.19154053,1837.1,1836.8,5.45419]
[1743442462404,5.44377,1837.0,1836.8,0.01]
[1743442462595,5.05185965,1836.9,1836.8,0.01]
[1743442463919,10.49580965,1836.9,1836.8,0.01]
[1743442464084,12.08976562,1836.9,1836.8,0.01]
[1743442464281,5.05185965,1836.9,1836.8,5.45425]
[1743442464683,5.05185965,1836.9,1836.8,6.20865]
[1743442464882,5.05185965,1837.1,1837.0,5.44365]
[1743442465321,5.05185965,1837.1,1837.0,8.44365]
[1743442466622,5.05185965,1837.1,1837.0,9.22825]